[Event "Late-Titled-Tuesday-Blitz-January-16-2024"]
[Site "Chess.com"]
[Date "2024.01.16"]
[Round "4"]
[White "Rdeux42"]
[Black "carloseduar100"]
[Result "0-1"]
[WhiteElo "2480"]
[BlackElo "2293"]
[TimeControl "180+1"]
[EndTime "14:38:21 PST"]
[Termination "carloseduar100 won on time"]

1. e4 {[%clk 0:02:58]} 1... e6 {[%clk 0:02:47.9]} 2. d4 {[%clk 0:02:57.5]} 2...
d5 {[%clk 0:02:47.9]} 3. Nc3 {[%clk 0:02:56.5]} 3... Nf6 {[%clk 0:02:47.6]} 4.
e5 {[%clk 0:02:56.5]} 4... Nfd7 {[%clk 0:02:48.1]} 5. f4 {[%clk 0:02:56.9]} 5...
c5 {[%clk 0:02:48.6]} 6. Nf3 {[%clk 0:02:57.3]} 6... Nc6 {[%clk 0:02:49.2]} 7.
Be3 {[%clk 0:02:57.6]} 7... Qb6 {[%clk 0:02:49.4]} 8. a3 {[%clk 0:02:57.5]} 8...
cxd4 {[%clk 0:02:40.8]} 9. Nxd4 {[%clk 0:02:56.9]} 9... Nxd4 {[%clk 0:02:41]}
10. Bxd4 {[%clk 0:02:56.6]} 10... Bc5 {[%clk 0:02:40]} 11. Na4 {[%clk
0:02:56.4]} 11... Qa5+ {[%clk 0:02:40.2]} 12. c3 {[%clk 0:02:56.9]} 12... Bxd4
{[%clk 0:02:40]} 13. Qxd4 {[%clk 0:02:57.8]} 13... b5 {[%clk 0:02:36.8]} 14. Nc5
{[%clk 0:02:52.3]} 14... Qb6 {[%clk 0:02:36.9]} 15. Nxd7 {[%clk 0:02:16.8]}
15... Qxd4 {[%clk 0:02:36.4]} 16. Nf6+ {[%clk 0:02:07.3]} 16... gxf6 {[%clk
0:02:33.2]} 17. Bxb5+ {[%clk 0:02:06.9]} 17... Bd7 {[%clk 0:02:33.8]} 18. Bxd7+
{[%clk 0:02:04.9]} 18... Kxd7 {[%clk 0:02:34.7]} 19. cxd4 {[%clk 0:02:04.8]}
19... fxe5 {[%clk 0:02:35.6]} 20. fxe5 {[%clk 0:01:53.1]} 20... Rhg8 {[%clk
0:02:34.9]} 21. O-O {[%clk 0:01:52.9]} 21... Ke7 {[%clk 0:02:31.8]} 22. Rac1
{[%clk 0:01:50.6]} 22... Rgc8 {[%clk 0:02:31.2]} 23. Kf2 {[%clk 0:01:45.4]}
23... Rab8 {[%clk 0:02:28.1]} 24. b4 {[%clk 0:01:39.4]} 24... a5 {[%clk
0:02:19]} 25. Rxc8 {[%clk 0:00:39.8]} 25... Rxc8 {[%clk 0:02:18.5]} 26. Rb1
{[%clk 0:00:38.3]} 26... axb4 {[%clk 0:02:16.9]} 27. axb4 {[%clk 0:00:39.2]}
27... Rc4 {[%clk 0:02:08.7]} 28. b5 {[%clk 0:00:37.9]} 28... Kd7 {[%clk
0:02:09]} 29. b6 {[%clk 0:00:37.4]} 29... Kc8 {[%clk 0:02:09.4]} 30. b7+ {[%clk
0:00:35]} 30... Kb8 {[%clk 0:02:09.5]} 31. Ke3 {[%clk 0:00:35.3]} 31... Rc2
{[%clk 0:02:01.7]} 32. g4 {[%clk 0:00:16.3]} 32... Rxh2 {[%clk 0:02:01.5]} 33.
Rb4 {[%clk 0:00:16.6]} 33... h5 {[%clk 0:01:53.9]} 34. Kf3 {[%clk 0:00:06.5]}
34... Rh3+ {[%clk 0:01:51.2]} 35. Kf4 {[%clk 0:00:05.9]} 35... Rh4 {[%clk
0:01:51.5]} 36. Kg5 {[%clk 0:00:05.9]} 36... Rxg4+ {[%clk 0:01:51.3]} 37. Kxh5
{[%clk 0:00:03.6]} 37... Rg1 {[%clk 0:01:47.8]} 38. Kh6 {[%clk 0:00:03.4]} 38...
Rg6+ {[%clk 0:01:47.3]} 39. Kh7 {[%clk 0:00:03.4]} 39... Rg4 {[%clk 0:01:47.3]}
40. Kh6 {[%clk 0:00:03.5]} 40... Rg6+ {[%clk 0:01:46.7]} 41. Kh7 {[%clk
0:00:03.4]} 41... Rg1 {[%clk 0:01:46.7]} 42. Kh6 {[%clk 0:00:03.6]} 42... Rg2
{[%clk 0:01:09.3]} 43. Kh7 {[%clk 0:00:03.4]} 43... Rg6 {[%clk 0:01:02.9]} 44.
Kh8 {[%clk 0:00:02.6]} 44... f5 {[%clk 0:00:58.6]} 45. Kh7 {[%clk 0:00:03.5]}
45... Rg4 {[%clk 0:00:55.1]} 46. Rb6 {[%clk 0:00:03.2]} 46... Rxd4 {[%clk
0:00:49.7]} 47. Rxe6 {[%clk 0:00:03.5]} 47... Kxb7 {[%clk 0:00:48.5]} 48. Kg6
{[%clk 0:00:02.6]} 48... f4 {[%clk 0:00:48.2]} 49. Rf6 {[%clk 0:00:02]} 49...
Re4 {[%clk 0:00:48.6]} 50. e6 {[%clk 0:00:02]} 50... d4 {[%clk 0:00:48.4]} 51.
Kf7 {[%clk 0:00:02.9]} 51... d3 {[%clk 0:00:47.9]} 52. e7 {[%clk 0:00:02.7]}
52... d2 {[%clk 0:00:48.1]} 53. Rd6 {[%clk 0:00:02.7]} 53... f3 {[%clk
0:00:37.9]} 54. Rxd2 {[%clk 0:00:03.2]} 54... Rf4+ {[%clk 0:00:38]} 55. Kg6
{[%clk 0:00:02]} 55... Re4 {[%clk 0:00:36.6]} 56. Kf6 {[%clk 0:00:01.2]} 56...
Kc7 {[%clk 0:00:28.9]} 0-1

[Event "Late-Titled-Tuesday-Blitz-January-16-2024"]
[Site "Chess.com"]
[Date "2024.01.16"]
[Round "4"]
[White "K_A_S_T_O_R"]
[Black "Jospem"]
[Result "0-1"]
[WhiteElo "2919"]
[BlackElo "3106"]
[TimeControl "180+1"]
[EndTime "14:38:23 PST"]
[Termination "Jospem won by resignation"]

1. e4 {[%clk 0:03:00.9]} 1... c5 {[%clk 0:03:00.2]} 2. Nf3 {[%clk 0:03:00.1]}
2... d6 {[%clk 0:03:00.8]} 3. d4 {[%clk 0:03:00.1]} 3... cxd4 {[%clk 0:03:01.7]}
4. Nxd4 {[%clk 0:03:00.6]} 4... a6 {[%clk 0:03:02.4]} 5. Bc4 {[%clk 0:02:48.1]}
5... e6 {[%clk 0:03:01.2]} 6. Nc3 {[%clk 0:02:45.5]} 6... Nf6 {[%clk 0:03:01.4]}
7. Bb3 {[%clk 0:02:45]} 7... b5 {[%clk 0:02:58.7]} 8. Bg5 {[%clk 0:02:40.5]}
8... Be7 {[%clk 0:02:28.7]} 9. Qf3 {[%clk 0:02:36.5]} 9... Qb6 {[%clk
0:02:28.8]} 10. O-O-O {[%clk 0:02:31]} 10... Nbd7 {[%clk 0:02:28.2]} 11. Rhe1
{[%clk 0:02:29.4]} 11... Bb7 {[%clk 0:02:05.7]} 12. Bxe6 {[%clk 0:01:58.9]}
12... Ne5 {[%clk 0:02:04.6]} 13. Qg3 {[%clk 0:01:41.6]} 13... fxe6 {[%clk
0:02:04.6]} 14. Nxe6 {[%clk 0:01:41.7]} 14... Kf7 {[%clk 0:01:35.1]} 15. Nxg7
{[%clk 0:01:28.6]} 15... b4 {[%clk 0:01:34.8]} 16. Be3 {[%clk 0:01:03.7]} 16...
Qc7 {[%clk 0:01:21.3]} 17. Nf5 {[%clk 0:01:01.1]} 17... bxc3 {[%clk 0:01:03.8]}
18. Qg7+ {[%clk 0:00:59.1]} 18... Ke6 {[%clk 0:01:04.3]} 19. Nd4+ {[%clk
0:00:47.5]} 19... Kd7 {[%clk 0:01:02.5]} 20. Nf5 {[%clk 0:00:48]} 20... cxb2+
{[%clk 0:01:02.7]} 21. Kb1 {[%clk 0:00:47.5]} 21... Rhe8 {[%clk 0:00:37.1]} 22.
Bg5 {[%clk 0:00:39.3]} 22... Nxe4 {[%clk 0:00:25.1]} 23. Bxe7 {[%clk 0:00:35]}
23... Nc3+ {[%clk 0:00:22.2]} 24. Kxb2 {[%clk 0:00:35]} 24... Nxd1+ {[%clk
0:00:22.7]} 25. Rxd1 {[%clk 0:00:31.6]} 25... Nc4+ {[%clk 0:00:18]} 26. Ka1
{[%clk 0:00:29.7]} 26... Kc8 {[%clk 0:00:18.7]} 27. Qf7 {[%clk 0:00:27.9]} 27...
Rxe7 {[%clk 0:00:12.1]} 28. Nxe7+ {[%clk 0:00:27.2]} 28... Kb8 {[%clk
0:00:12.3]} 29. Rd4 {[%clk 0:00:15.7]} 29... Nb6 {[%clk 0:00:09]} 30. Qf6 {[%clk
0:00:14]} 30... Ka7 {[%clk 0:00:06.7]} 31. Kb1 {[%clk 0:00:14.2]} 31... Re8
{[%clk 0:00:06.2]} 32. Nf5 {[%clk 0:00:12.1]} 32... Re1+ {[%clk 0:00:06.3]} 33.
Kb2 {[%clk 0:00:12.7]} 33... Nc4+ {[%clk 0:00:06.3]} 34. Kb3 {[%clk 0:00:11.9]}
34... Rb1+ {[%clk 0:00:06.2]} 35. Kc3 {[%clk 0:00:12.2]} 35... Na3+ {[%clk
0:00:05.8]} 36. Kd2 {[%clk 0:00:11.7]} 36... Qxc2+ {[%clk 0:00:06.2]} 37. Ke3
{[%clk 0:00:12.6]} 37... Re1+ {[%clk 0:00:05.7]} 38. Kf4 {[%clk 0:00:13]} 38...
Qxf2+ {[%clk 0:00:06.1]} 39. Kg5 {[%clk 0:00:13.2]} 39... Qxg2+ {[%clk
0:00:04.2]} 40. Rg4 {[%clk 0:00:13.5]} 40... Qd2+ {[%clk 0:00:04.4]} 41. Kh4
{[%clk 0:00:11.3]} 41... Qxh2+ {[%clk 0:00:04.3]} 42. Kg5 {[%clk 0:00:11.8]}
42... Qd2+ {[%clk 0:00:05.2]} 43. Kh4 {[%clk 0:00:12.3]} 43... Nb5 {[%clk
0:00:05]} 44. Ng3 {[%clk 0:00:11]} 44... Re5 {[%clk 0:00:03.5]} 45. Qf1 {[%clk
0:00:08.7]} 45... Qh2+ {[%clk 0:00:03.4]} 46. Qh3 {[%clk 0:00:08.4]} 46... Qxh3+
{[%clk 0:00:04.1]} 47. Kxh3 {[%clk 0:00:09.2]} 47... Bc8 {[%clk 0:00:05]} 48.
Kh4 {[%clk 0:00:09.7]} 48... Bxg4 {[%clk 0:00:05.5]} 49. Kxg4 {[%clk 0:00:10.6]}
49... Re3 {[%clk 0:00:05.7]} 0-1

[Event "Late-Titled-Tuesday-Blitz-January-16-2024"]
[Site "Chess.com"]
[Date "2024.01.16"]
[Round "4"]
[White "username0932589"]
[Black "Jagerrmeisterr"]
[Result "0-1"]
[WhiteElo "2538"]
[BlackElo "2711"]
[TimeControl "180+1"]
[EndTime "14:38:24 PST"]
[Termination "Jagerrmeisterr won on time"]

1. e4 {[%clk 0:02:58.8]} 1... c6 {[%clk 0:02:55.1]} 2. Nf3 {[%clk 0:02:58.1]}
2... d5 {[%clk 0:02:54.8]} 3. Nc3 {[%clk 0:02:58.4]} 3... dxe4 {[%clk
0:02:53.3]} 4. Nxe4 {[%clk 0:02:59.3]} 4... Nf6 {[%clk 0:02:53.7]} 5. Qe2 {[%clk
0:02:59.6]} 5... Bg4 {[%clk 0:02:52.7]} 6. Nxf6+ {[%clk 0:02:49.8]} 6... gxf6
{[%clk 0:02:51.3]} 7. h3 {[%clk 0:02:47.2]} 7... Bh5 {[%clk 0:02:48.4]} 8. b3
{[%clk 0:02:27.8]} 8... Qd5 {[%clk 0:02:38.3]} 9. Bb2 {[%clk 0:02:19.5]} 9...
Bxf3 {[%clk 0:02:33.9]} 10. gxf3 {[%clk 0:02:20.4]} 10... Nd7 {[%clk 0:02:31.2]}
11. O-O-O {[%clk 0:02:13.6]} 11... e6 {[%clk 0:02:18.9]} 12. h4 {[%clk
0:01:53.4]} 12... O-O-O {[%clk 0:02:09.9]} 13. h5 {[%clk 0:01:46.3]} 13... Bh6
{[%clk 0:02:05.3]} 14. Kb1 {[%clk 0:01:41.1]} 14... Rhg8 {[%clk 0:01:53.4]} 15.
Qe4 {[%clk 0:01:31.1]} 15... f5 {[%clk 0:01:48.2]} 16. Qe2 {[%clk 0:01:16.6]}
16... Bg7 {[%clk 0:01:34.9]} 17. c4 {[%clk 0:01:05]} 17... Qa5 {[%clk
0:01:17.2]} 18. d4 {[%clk 0:01:01.6]} 18... Bf6 {[%clk 0:00:51.7]} 19. f4 {[%clk
0:00:51]} 19... Qc7 {[%clk 0:00:48.3]} 20. Qe3 {[%clk 0:00:49.9]} 20... Rg4
{[%clk 0:00:47.3]} 21. Bc1 {[%clk 0:00:48]} 21... c5 {[%clk 0:00:46.2]} 22. dxc5
{[%clk 0:00:42.5]} 22... Nxc5 {[%clk 0:00:38.4]} 23. Be2 {[%clk 0:00:38.1]}
23... Rgg8 {[%clk 0:00:36.1]} 24. Bf3 {[%clk 0:00:33.3]} 24... a5 {[%clk
0:00:29.7]} 25. Ba3 {[%clk 0:00:33.2]} 25... b6 {[%clk 0:00:26.4]} 26. h6 {[%clk
0:00:30.3]} 26... Rxd1+ {[%clk 0:00:24.6]} 27. Rxd1 {[%clk 0:00:29.5]} 27... Rd8
{[%clk 0:00:25.3]} 28. Rxd8+ {[%clk 0:00:28]} 28... Kxd8 {[%clk 0:00:25.3]} 29.
Kc2 {[%clk 0:00:19.8]} 29... Ke8 {[%clk 0:00:24.6]} 30. Ba8 {[%clk 0:00:17.1]}
30... Be7 {[%clk 0:00:22.8]} 31. Qg3 {[%clk 0:00:16.4]} 31... Bf6 {[%clk
0:00:19.4]} 32. Qg8+ {[%clk 0:00:13.8]} 32... Ke7 {[%clk 0:00:20]} 33. Qg3
{[%clk 0:00:12.2]} 33... Qd6 {[%clk 0:00:19.9]} 34. Qe3 {[%clk 0:00:09.5]} 34...
Bd4 {[%clk 0:00:20.1]} 35. Qg3 {[%clk 0:00:09.1]} 35... Bf6 {[%clk 0:00:19.9]}
36. Qe3 {[%clk 0:00:08.9]} 36... Ke8 {[%clk 0:00:19.1]} 37. Bf3 {[%clk
0:00:08.4]} 37... Be7 {[%clk 0:00:19.5]} 38. Bb2 {[%clk 0:00:08.6]} 38... Bf8
{[%clk 0:00:19.8]} 39. Be5 {[%clk 0:00:09]} 39... Qd7 {[%clk 0:00:18.8]} 40. Ba8
{[%clk 0:00:08.4]} 40... Bxh6 {[%clk 0:00:18.8]} 41. Qf3 {[%clk 0:00:09]} 41...
Kf8 {[%clk 0:00:16.8]} 42. Bc6 {[%clk 0:00:08.6]} 42... Qe7 {[%clk 0:00:16.8]}
43. Qh3 {[%clk 0:00:08.3]} 43... Bg7 {[%clk 0:00:16.8]} 44. Qxh7 {[%clk
0:00:07.6]} 44... Bxe5 {[%clk 0:00:17.1]} 45. fxe5 {[%clk 0:00:08.5]} 45... Qg5
{[%clk 0:00:16.3]} 46. Qh8+ {[%clk 0:00:07.5]} 46... Ke7 {[%clk 0:00:16.8]} 47.
Qc8 {[%clk 0:00:07.2]} 47... Qf4 {[%clk 0:00:13.9]} 48. Qd7+ {[%clk 0:00:06.1]}
48... Nxd7 {[%clk 0:00:13.5]} 49. Bxd7 {[%clk 0:00:06.1]} 49... Kxd7 {[%clk
0:00:13.8]} 0-1

[Event "Late-Titled-Tuesday-Blitz-January-16-2024"]
[Site "Chess.com"]
[Date "2024.01.16"]
[Round "4"]
[White "DonJuanEGenaro"]
[Black "cristiano78"]
[Result "0-1"]
[WhiteElo "1908"]
[BlackElo "2222"]
[TimeControl "180+1"]
[EndTime "14:38:24 PST"]
[Termination "cristiano78 won by resignation"]

1. d4 {[%clk 0:03:00.8]} 1... Nf6 {[%clk 0:02:59.6]} 2. Nf3 {[%clk 0:02:59.6]}
2... g6 {[%clk 0:02:59.9]} 3. Bf4 {[%clk 0:02:59]} 3... Bg7 {[%clk 0:03:00.4]}
4. e3 {[%clk 0:02:59.3]} 4... d6 {[%clk 0:03:00.9]} 5. Bc4 {[%clk 0:02:58.5]}
5... O-O {[%clk 0:03:00.4]} 6. h3 {[%clk 0:02:58.5]} 6... c6 {[%clk 0:03:00.3]}
7. O-O {[%clk 0:02:57.6]} 7... b5 {[%clk 0:03:00.2]} 8. Bb3 {[%clk 0:02:55.9]}
8... a5 {[%clk 0:02:59.6]} 9. a4 {[%clk 0:02:55.2]} 9... b4 {[%clk 0:02:59.4]}
10. c4 {[%clk 0:02:54.7]} 10... Nbd7 {[%clk 0:02:58.1]} 11. Qe2 {[%clk
0:02:45.7]} 11... Ba6 {[%clk 0:02:56.5]} 12. Nbd2 {[%clk 0:02:36]} 12... d5
{[%clk 0:02:49.9]} 13. Ne5 {[%clk 0:02:30.3]} 13... Nxe5 {[%clk 0:02:45.3]} 14.
Bxe5 {[%clk 0:02:24.7]} 14... Qd7 {[%clk 0:02:38.9]} 15. Qf3 {[%clk 0:02:23.6]}
15... Qe6 {[%clk 0:02:30.6]} 16. Bxf6 {[%clk 0:02:17.2]} 16... Qxf6 {[%clk
0:02:20]} 17. Qxf6 {[%clk 0:02:11]} 17... Bxf6 {[%clk 0:02:19.7]} 18. Rfc1
{[%clk 0:02:08.4]} 18... e6 {[%clk 0:02:16.3]} 19. cxd5 {[%clk 0:01:49.5]} 19...
cxd5 {[%clk 0:02:15.8]} 20. Nf3 {[%clk 0:01:48.2]} 20... Rfc8 {[%clk 0:02:08.1]}
21. g4 {[%clk 0:01:47]} 21... Kf8 {[%clk 0:02:07.5]} 22. g5 {[%clk 0:01:45.2]}
22... Be7 {[%clk 0:02:05.9]} 23. h4 {[%clk 0:01:44.3]} 23... Bd6 {[%clk
0:02:01.8]} 24. Nd2 {[%clk 0:01:35.1]} 24... Ke7 {[%clk 0:02:00.4]} 25. e4
{[%clk 0:01:33.7]} 25... Bf4 {[%clk 0:01:58.3]} 26. Rxc8 {[%clk 0:01:25.3]}
26... Rxc8 {[%clk 0:01:57.6]} 27. Rd1 {[%clk 0:01:14.6]} 27... Bxd2 {[%clk
0:01:51.6]} 28. Rxd2 {[%clk 0:01:13.5]} 28... dxe4 {[%clk 0:01:51.9]} 29. Bc2
{[%clk 0:01:03]} 29... Bb7 {[%clk 0:01:46.1]} 30. Kf1 {[%clk 0:01:02.7]} 30...
Kd6 {[%clk 0:01:44.1]} 31. Ke2 {[%clk 0:01:01.1]} 31... Bd5 {[%clk 0:01:42.3]}
32. Ke3 {[%clk 0:00:59.8]} 32... b3 {[%clk 0:01:37.8]} 33. Bxe4 {[%clk
0:00:58.5]} 33... Rc4 {[%clk 0:01:37.4]} 34. Bxd5 {[%clk 0:00:53.2]} 34... Kxd5
{[%clk 0:01:37.5]} 35. Rd3 {[%clk 0:00:49.5]} 35... Rxa4 {[%clk 0:01:33.3]} 36.
Rxb3 {[%clk 0:00:49.1]} 36... Rb4 {[%clk 0:01:33.2]} 37. Rxb4 {[%clk 0:00:45.3]}
37... axb4 {[%clk 0:01:33.2]} 38. b3 {[%clk 0:00:45.1]} 38... e5 {[%clk
0:01:32.5]} 39. dxe5 {[%clk 0:00:43.5]} 39... Kxe5 {[%clk 0:01:32.7]} 40. f4+
{[%clk 0:00:33.7]} 40... Kf5 {[%clk 0:01:27.9]} 41. Kf3 {[%clk 0:00:31.4]} 41...
f6 {[%clk 0:01:28]} 42. gxf6 {[%clk 0:00:29.6]} 42... Kxf6 {[%clk 0:01:28.2]}
43. Ke4 {[%clk 0:00:17.1]} 43... Ke6 {[%clk 0:01:27.7]} 44. Ke3 {[%clk
0:00:16.4]} 44... h6 {[%clk 0:01:19.3]} 45. Kf3 {[%clk 0:00:14.3]} 45... Kf5
{[%clk 0:01:16]} 46. Kg3 {[%clk 0:00:13.1]} 46... Ke4 {[%clk 0:01:12.3]} 47. Kg4
{[%clk 0:00:11.8]} 47... Kd4 {[%clk 0:01:09.6]} 48. h5 {[%clk 0:00:10.4]} 48...
gxh5+ {[%clk 0:01:09.1]} 49. Kxh5 {[%clk 0:00:10.3]} 49... Ke4 {[%clk
0:00:55.2]} 50. Kg4 {[%clk 0:00:08.9]} 50... h5+ {[%clk 0:00:55.4]} 51. Kxh5
{[%clk 0:00:08.7]} 51... Kxf4 {[%clk 0:00:55.3]} 52. Kh4 {[%clk 0:00:08.1]}
52... Ke3 {[%clk 0:00:55.2]} 53. Kg3 {[%clk 0:00:08.1]} 53... Kd3 {[%clk
0:00:55.5]} 54. Kf2 {[%clk 0:00:07.4]} 54... Kc3 {[%clk 0:00:56.3]} 55. Ke2
{[%clk 0:00:06.9]} 55... Kxb3 {[%clk 0:00:56.5]} 56. Kd2 {[%clk 0:00:06.2]}
56... Kb2 {[%clk 0:00:56.8]} 57. Kd1 {[%clk 0:00:05.3]} 57... b3 {[%clk
0:00:57]} 0-1

[Event "Late-Titled-Tuesday-Blitz-January-16-2024"]
[Site "Chess.com"]
[Date "2024.01.16"]
[Round "4"]
[White "AmanteDeMoi"]
[Black "Rodalquilar"]
[Result "1-0"]
[WhiteElo "2577"]
[BlackElo "2730"]
[TimeControl "180+1"]
[EndTime "14:38:25 PST"]
[Termination "AmanteDeMoi won by checkmate"]

1. Nf3 {[%clk 0:02:59.3]} 1... d5 {[%clk 0:03:00.2]} 2. e3 {[%clk 0:02:59.4]}
2... Nf6 {[%clk 0:03:00.4]} 3. c4 {[%clk 0:02:59.4]} 3... e6 {[%clk 0:03:01]} 4.
b3 {[%clk 0:02:59.3]} 4... c5 {[%clk 0:03:00.8]} 5. Bb2 {[%clk 0:02:59.7]} 5...
Nc6 {[%clk 0:03:01.1]} 6. cxd5 {[%clk 0:02:59.6]} 6... exd5 {[%clk 0:03:02]} 7.
d4 {[%clk 0:02:56.5]} 7... cxd4 {[%clk 0:03:01.4]} 8. Nxd4 {[%clk 0:02:56.8]}
8... Bb4+ {[%clk 0:03:01.6]} 9. Bc3 {[%clk 0:02:54.3]} 9... a5 {[%clk
0:03:01.7]} 10. Bb5 {[%clk 0:02:53.3]} 10... O-O {[%clk 0:02:06.6]} 11. O-O
{[%clk 0:02:52.6]} 11... Bg4 {[%clk 0:01:55.1]} 12. Qc2 {[%clk 0:01:52.2]} 12...
Qb6 {[%clk 0:01:31.4]} 13. Bxc6 {[%clk 0:01:47.3]} 13... bxc6 {[%clk 0:01:28.6]}
14. Bxb4 {[%clk 0:01:42.5]} 14... axb4 {[%clk 0:01:25.6]} 15. Qxc6 {[%clk
0:01:42.1]} 15... Qxc6 {[%clk 0:01:16.9]} 16. Nxc6 {[%clk 0:01:42.1]} 16... Bd7
{[%clk 0:01:17.7]} 17. Nxb4 {[%clk 0:01:36]} 17... Rfb8 {[%clk 0:01:17.9]} 18.
Nc2 {[%clk 0:01:27]} 18... Ne4 {[%clk 0:01:07.5]} 19. Nd4 {[%clk 0:01:08.9]}
19... Rc8 {[%clk 0:00:57.9]} 20. a4 {[%clk 0:01:06.7]} 20... g5 {[%clk
0:00:53.5]} 21. Na3 {[%clk 0:00:55.9]} 21... Nd2 {[%clk 0:00:52.5]} 22. Rfc1
{[%clk 0:00:52.8]} 22... Rcb8 {[%clk 0:00:51.4]} 23. Rc3 {[%clk 0:00:46.7]}
23... Ne4 {[%clk 0:00:51.5]} 24. Rc7 {[%clk 0:00:46.5]} 24... Be8 {[%clk
0:00:35.9]} 25. Rd1 {[%clk 0:00:45.9]} 25... g4 {[%clk 0:00:33.2]} 26. Nab5
{[%clk 0:00:40.3]} 26... Rb6 {[%clk 0:00:21.6]} 27. Rdc1 {[%clk 0:00:34.3]}
27... Kg7 {[%clk 0:00:13.1]} 28. Rc8 {[%clk 0:00:33.9]} 28... Rxc8 {[%clk
0:00:13.3]} 29. Rxc8 {[%clk 0:00:33.7]} 29... Bd7 {[%clk 0:00:08.8]} 30. Rc7
{[%clk 0:00:33.7]} 30... Be8 {[%clk 0:00:09.4]} 31. f3 {[%clk 0:00:22.2]} 31...
gxf3 {[%clk 0:00:07.7]} 32. gxf3 {[%clk 0:00:22.4]} 32... Nd2 {[%clk 0:00:08.3]}
33. Kf2 {[%clk 0:00:21.4]} 33... Bxb5 {[%clk 0:00:08.5]} 34. axb5 {[%clk
0:00:20.6]} 34... Nb1 {[%clk 0:00:08.9]} 35. Rc6 {[%clk 0:00:19.9]} 35... Rb8
{[%clk 0:00:08.8]} 36. Ke2 {[%clk 0:00:18]} 36... Na3 {[%clk 0:00:09.2]} 37. Rc5
{[%clk 0:00:18.3]} 37... Rb6 {[%clk 0:00:08.7]} 38. Kd2 {[%clk 0:00:17.7]} 38...
Rh6 {[%clk 0:00:08.6]} 39. Kc3 {[%clk 0:00:13.3]} 39... Rxh2 {[%clk 0:00:08.8]}
40. Kb4 {[%clk 0:00:13.4]} 40... Nb1 {[%clk 0:00:09.2]} 41. b6 {[%clk
0:00:13.2]} 41... Rh6 {[%clk 0:00:04.4]} 42. b7 {[%clk 0:00:13.3]} 42... Rb6+
{[%clk 0:00:02.7]} 43. Rb5 {[%clk 0:00:13.4]} 43... Ra6 {[%clk 0:00:03.4]} 44.
b8=Q {[%clk 0:00:13]} 44... Na3 {[%clk 0:00:04]} 45. Qg3+ {[%clk 0:00:12.3]}
45... Kf6 {[%clk 0:00:04.1]} 46. Qf4+ {[%clk 0:00:12.4]} 46... Kg7 {[%clk
0:00:04.6]} 47. Qg5+ {[%clk 0:00:12]} 47... Rg6 {[%clk 0:00:04.8]} 48. Nf5+
{[%clk 0:00:12.1]} 48... Kf8 {[%clk 0:00:04.4]} 49. Rb8# {[%clk 0:00:11.7]} 1-0

[Event "Late-Titled-Tuesday-Blitz-January-16-2024"]
[Site "Chess.com"]
[Date "2024.01.16"]
[Round "4"]
[White "MrChessSponge"]
[Black "ChessicallyInclined"]
[Result "0-1"]
[WhiteElo "2550"]
[BlackElo "2727"]
[TimeControl "180+1"]
[EndTime "14:38:25 PST"]
[Termination "ChessicallyInclined won by resignation"]

1. d4 {[%clk 0:02:58.9]} 1... Nf6 {[%clk 0:02:58.2]} 2. c4 {[%clk 0:02:56]} 2...
b6 {[%clk 0:02:58.4]} 3. Nc3 {[%clk 0:02:53.6]} 3... Bb7 {[%clk 0:02:58.3]} 4.
f3 {[%clk 0:02:53.8]} 4... d5 {[%clk 0:02:57.9]} 5. cxd5 {[%clk 0:02:53.3]} 5...
Nxd5 {[%clk 0:02:58.3]} 6. e4 {[%clk 0:02:53.5]} 6... Nxc3 {[%clk 0:02:58.7]} 7.
bxc3 {[%clk 0:02:53.9]} 7... e5 {[%clk 0:02:59.3]} 8. Be3 {[%clk 0:02:53.1]}
8... exd4 {[%clk 0:02:59.7]} 9. cxd4 {[%clk 0:02:53.6]} 9... Bb4+ {[%clk
0:02:59.8]} 10. Kf2 {[%clk 0:02:53.7]} 10... Nd7 {[%clk 0:02:59.4]} 11. Bc4
{[%clk 0:02:49.4]} 11... O-O {[%clk 0:02:58.3]} 12. Ne2 {[%clk 0:02:49.9]} 12...
c5 {[%clk 0:02:58]} 13. a3 {[%clk 0:02:47.3]} 13... cxd4 {[%clk 0:02:53.2]} 14.
Nxd4 {[%clk 0:02:46.5]} 14... Bc5 {[%clk 0:02:52.9]} 15. Nf5 {[%clk 0:02:45.5]}
15... Bxe3+ {[%clk 0:02:49.7]} 16. Nxe3 {[%clk 0:02:45]} 16... Ne5 {[%clk
0:02:45.9]} 17. Qxd8 {[%clk 0:02:39.6]} 17... Rfxd8 {[%clk 0:02:44.4]} 18. Rhd1
{[%clk 0:02:40.2]} 18... Kf8 {[%clk 0:02:36.5]} 19. Bd5 {[%clk 0:02:29.6]} 19...
Bxd5 {[%clk 0:02:34]} 20. Nxd5 {[%clk 0:02:28.6]} 20... Rac8 {[%clk 0:02:31.7]}
21. Rd2 {[%clk 0:02:13.6]} 21... Rc3 {[%clk 0:02:13.1]} 22. Nxc3 {[%clk
0:02:03.9]} 22... Rxd2+ {[%clk 0:02:11.5]} 23. Kg3 {[%clk 0:02:04]} 23... Nc4
{[%clk 0:02:01.2]} 24. Nd5 {[%clk 0:01:49.3]} 24... f5 {[%clk 0:01:40.3]} 25. a4
{[%clk 0:01:37.6]} 25... g5 {[%clk 0:01:20.2]} 26. Rc1 {[%clk 0:01:35.9]} 26...
Nd6 {[%clk 0:00:42.8]} 27. Rc6 {[%clk 0:01:20.4]} 27... fxe4 {[%clk 0:00:31.1]}
28. Rxd6 {[%clk 0:01:18.4]} 28... e3 {[%clk 0:00:31.6]} 29. Rd8+ {[%clk
0:01:14.8]} 29... Kf7 {[%clk 0:00:31.2]} 30. Rd7+ {[%clk 0:01:14.8]} 30... Ke6
{[%clk 0:00:27.8]} 31. Re7+ {[%clk 0:01:10.2]} 31... Kxd5 {[%clk 0:00:27.1]} 32.
Rxe3 {[%clk 0:01:10.8]} 32... Rd4 {[%clk 0:00:26.9]} 33. Ra3 {[%clk 0:00:55.2]}
33... Kc5 {[%clk 0:00:23.1]} 34. Rc3+ {[%clk 0:00:50.9]} 34... Kb4 {[%clk
0:00:21.8]} 35. Rc7 {[%clk 0:00:50.7]} 35... a5 {[%clk 0:00:19]} 36. Rc6 {[%clk
0:00:50.7]} 36... b5 {[%clk 0:00:18.6]} 37. axb5 {[%clk 0:00:49.8]} 37... Kxb5
{[%clk 0:00:19.5]} 38. Rc7 {[%clk 0:00:47.8]} 38... h5 {[%clk 0:00:17.1]} 39.
Rb7+ {[%clk 0:00:46.2]} 39... Kc4 {[%clk 0:00:13.8]} 40. Rg7 {[%clk 0:00:44.4]}
40... Rd5 {[%clk 0:00:12.4]} 41. h4 {[%clk 0:00:42.8]} 41... gxh4+ {[%clk
0:00:12.1]} 42. Kxh4 {[%clk 0:00:42.8]} 42... a4 {[%clk 0:00:12.7]} 43. Ra7
{[%clk 0:00:42.2]} 43... Kb4 {[%clk 0:00:10.4]} 44. g4 {[%clk 0:00:37.8]} 44...
hxg4 {[%clk 0:00:10.2]} 45. fxg4 {[%clk 0:00:38.7]} 45... a3 {[%clk 0:00:10.8]}
46. g5 {[%clk 0:00:26.9]} 46... Ra5 {[%clk 0:00:10.1]} 47. Rb7+ {[%clk 0:00:27]}
47... Kc3 {[%clk 0:00:09.9]} 48. Rb1 {[%clk 0:00:27.3]} 48... a2 {[%clk
0:00:10.1]} 49. Ra1 {[%clk 0:00:27.6]} 49... Kb2 {[%clk 0:00:05.7]} 50. Rxa2+
{[%clk 0:00:27.5]} 50... Rxa2 {[%clk 0:00:06.1]} 51. g6 {[%clk 0:00:27.5]} 51...
Kc3 {[%clk 0:00:06.4]} 52. Kh5 {[%clk 0:00:27.4]} 52... Kd4 {[%clk 0:00:06.6]}
53. g7 {[%clk 0:00:27.6]} 53... Rg2 {[%clk 0:00:07]} 54. Kh6 {[%clk 0:00:27.2]}
54... Ke5 {[%clk 0:00:07.5]} 55. Kh7 {[%clk 0:00:24.7]} 55... Kf6 {[%clk
0:00:07.8]} 56. Kh8 {[%clk 0:00:19.7]} 56... Kf7 {[%clk 0:00:05.7]} 0-1